fUST/lending_fUST_20260313
["ID","MTS","AMOUNT","RATE_DAILY","PERIOD"]
[408276286,1773342648636,-254.567862,0.00010959,2]
[408276288,1773342648645,-254.567862,0.00010959,2]
[408276290,1773342648656,-254.567855,0.00010959,2]
[408276292,1773342648667,-258.713974,0.00010959,2]
[408276294,1773342648677,-224.136757,0.00010959,2]
[408276314,1773342648865,-1682.034323,0.00010959,2]
[408276316,1773342648878,-1682.034323,0.00010959,2]
[408276318,1773342648890,-1682.034323,0.00010959,2]
[408276320,1773342648900,-1682.034323,0.00010959,2]
[408276322,1773342648911,-1682.034323,0.00010959,2]
[408276324,1773342648922,-1682.034323,0.00010959,2]
[408276326,1773342648932,-1682.034323,0.00010959,2]
[408276328,1773342648942,-1682.034323,0.00010959,2]
[408276330,1773342648952,-1682.034323,0.00010959,2]
[408276332,1773342648963,-1682.034323,0.00010959,2]
[408276334,1773342648973,-1682.034323,0.00010959,2]
[408276336,1773342648983,-1682.034323,0.00010959,2]
[408276338,1773342648993,-1682.034323,0.00010959,2]
[408276340,1773342649003,-1682.034323,0.00010959,2]
[408276342,1773342649012,-1682.034323,0.00010959,2]
[408276344,1773342649023,-1682.034323,0.00010959,2]
[408276346,1773342649033,-1682.034323,0.00010959,2]
[408276348,1773342649044,-1682.034323,0.00010959,2]
[408276350,1773342649053,-1682.034323,0.00010959,2]
[408276352,1773342649063,-1682.034329,0.00010959,2]
[408276354,1773342649073,-988.48812,0.00010959,2]
[408276356,1773342649083,-988.48812,0.00010959,2]
[408276358,1773342649093,-988.48812,0.00010959,2]
[408276360,1773342649103,-988.48812,0.00010959,2]
[408276362,1773342649113,-988.48812,0.00010959,2]
[408276364,1773342649123,-988.48812,0.00010959,2]
[408276366,1773342649133,-988.48812,0.00010959,2]
[408276368,1773342649143,-988.48812,0.00010959,2]
[408276370,1773342649153,-988.48812,0.00010959,2]
[408276372,1773342649163,-988.48812,0.00010959,2]
[408276374,1773342649174,-988.48812,0.00010959,2]
[408276376,1773342649184,-988.48812,0.00010959,2]
[408276378,1773342649195,-988.48812,0.00010959,2]
[408276380,1773342649205,-988.48812,0.00010959,2]
[408276382,1773342649215,-988.48812,0.00010959,2]
[408276384,1773342649224,-988.48812,0.00010959,2]
[408276386,1773342649235,-988.48812,0.00010959,2]
[408276388,1773342649246,-988.48812,0.00010959,2]
[408276390,1773342649256,-988.48812,0.00010959,2]
[408276392,1773342649267,-988.488115,0.00010959,2]
[408276394,1773342649276,-878.357244,0.00010959,2]
[408276396,1773342649286,-878.357244,0.00010959,2]
[408276398,1773342649296,-878.357244,0.00010959,2]
[408276400,1773342649306,-878.357244,0.00010959,2]
[408276402,1773342649316,-878.357244,0.00010959,2]
[408276404,1773342649326,-878.357244,0.00010959,2]
[408276406,1773342649337,-878.357244,0.00010959,2]
[408276408,1773342649347,-3153.886162,0.00010959,2]
[408276410,1773342649358,-878.357244,0.00010959,2]
[408276412,1773342649368,-3153.886162,0.00010959,2]
[408276414,1773342649378,-878.357244,0.00010959,2]
[408276416,1773342649388,-3153.886162,0.00010959,2]
[408276418,1773342649398,-878.357244,0.00010959,2]
[408276420,1773342649410,-3153.886162,0.00010959,2]
[408276422,1773342649421,-878.357244,0.00010959,2]
[408276424,1773342649432,-3153.886162,0.00010959,2]
[408276426,1773342649443,-878.357244,0.00010959,2]
[408276428,1773342649454,-1065.04383,0.00010959,2]
[408276430,1773342649465,-3153.886162,0.00010959,2]
[408276432,1773342649477,-878.357244,0.00010959,2]
[408276434,1773342649488,-1065.04383,0.00010959,2]
[408276436,1773342649500,-3153.886162,0.00010959,2]
[408276438,1773342649511,-878.357244,0.00010959,2]
[408276440,1773342649522,-1065.04383,0.00010959,2]
[408276442,1773342649532,-3153.886162,0.00010959,2]
[408276444,1773342649544,-878.357244,0.00010959,2]
[408276446,1773342649558,-1065.04383,0.00010959,2]
[408276448,1773342649569,-3153.886162,0.00010959,2]
[408276450,1773342649579,-878.357244,0.00010959,2]
[408276452,1773342649590,-1065.04383,0.00010959,2]
[408276454,1773342649603,-3153.886162,0.00010959,2]
[408276456,1773342649614,-878.357244,0.00010959,2]
[408276458,1773342649627,-1065.04383,0.00010959,2]
[408276461,1773342649638,-3153.886162,0.00010959,2]
[408276462,1773342649650,-878.357244,0.00010959,2]
[408276464,1773342649661,-1065.04383,0.00010959,2]
[408276467,1773342649673,-3153.886162,0.00010959,2]
[408276468,1773342649684,-878.357244,0.00010959,2]
[408276471,1773342649696,-1065.04383,0.00010959,2]
[408276473,1773342649709,-3153.886162,0.00010959,2]
[408276475,1773342649720,-878.357241,0.00010959,2]
[408276477,1773342649733,-1065.04383,0.00010959,2]
[408276479,1773342649746,-3153.886162,0.00010959,2]
[408276481,1773342649758,-1065.04383,0.00010959,2]
[408276483,1773342649769,-3153.886162,0.00010959,2]
[408276485,1773342649781,-1065.04383,0.00010959,2]
[408276487,1773342649793,-3153.886162,0.00010959,2]
[408276489,1773342649806,-1065.04383,0.00010959,2]
[408276491,1773342649818,-3153.886162,0.00010959,2]
[408276493,1773342649830,-1065.04383,0.00010959,2]
[408276495,1773342649840,-3153.886162,0.00010959,2]
[408276497,1773342649850,-1065.04383,0.00010959,2]
[408276499,1773342649863,-3153.886162,0.00010959,2]
[408276501,1773342649874,-1065.04383,0.00010959,2]
[408276503,1773342649888,-3153.886153,0.00010959,2]
[408276505,1773342649899,-1065.04383,0.00010959,2]
[408276507,1773342649910,-1065.04383,0.00010959,2]
[408276509,1773342649920,-1065.04383,0.00010959,2]
[408276511,1773342649932,-1065.04383,0.00010959,2]
[408276513,1773342649943,-497.556972,0.00010959,2]
[408276515,1773342649956,-1065.04383,0.00010959,2]
[408276518,1773342649968,-497.556972,0.00010959,2]
[408276520,1773342649980,-240.447611,0.00010959,2]
[408276522,1773342649991,-497.556972,0.00010959,2]
[408276524,1773342650000,-497.556972,0.00010959,2]
[408276526,1773342650012,-240.447611,0.00010959,2]
[408276527,1773342650022,-497.556972,0.00010959,2]
[408276529,1773342650034,-240.447611,0.00010959,2]
[408276531,1773342650046,-240.447611,0.00010959,2]
[408276533,1773342650057,-497.556972,0.00010959,2]
[408276535,1773342650068,-240.447611,0.00010959,2]
[408276537,1773342650079,-497.556972,0.00010959,2]
[408276539,1773342650090,-240.447611,0.00010959,2]
[408276541,1773342650100,-497.556972,0.00010959,2]
[408276543,1773342650115,-240.447611,0.00010959,2]
[408276545,1773342650126,-497.556972,0.00010959,2]
[408276547,1773342650137,-240.447611,0.00010959,2]
[408276549,1773342650149,-497.556972,0.00010959,2]
[408276551,1773342650160,-240.447611,0.00010959,2]
[408276553,1773342650171,-497.556972,0.00010959,2]
[408276555,1773342650182,-240.447611,0.00010959,2]
[408276557,1773342650192,-497.556972,0.00010959,2]
[408276559,1773342650203,-240.447611,0.00010959,2]
[408276561,1773342650214,-240.447611,0.00010959,2]
[408276563,1773342650225,-497.556972,0.00010959,2]
[408276565,1773342650236,-240.447611,0.00010959,2]
[408276568,1773342650247,-497.556972,0.00010959,2]
[408276569,1773342650259,-240.447611,0.00010959,2]
[408276571,1773342650271,-497.556972,0.00010959,2]
[408276573,1773342650283,-240.447611,0.00010959,2]
[408276575,1773342650295,-497.556972,0.00010959,2]
[408276578,1773342650307,-240.447611,0.00010959,2]
[408276580,1773342650319,-497.556972,0.00010959,2]
[408276582,1773342650332,-240.447611,0.00010959,2]
[408276584,1773342650343,-497.556972,0.00010959,2]
[408276586,1773342650355,-240.447611,0.00010959,2]
[408276588,1773342650369,-497.556972,0.00010959,2]
[408276590,1773342650380,-240.447611,0.00010959,2]
[408276592,1773342650393,-497.556973,0.00010959,2]
[408276594,1773342650404,-240.447607,0.00010959,2]
[408276596,1773342650416,-2778.366635,0.00010959,2]
[408276598,1773342650427,-2778.366635,0.00010959,2]
[408276600,1773342650439,-2778.366635,0.00010959,2]
[408276602,1773342650450,-2778.366635,0.00010959,2]
[408276604,1773342650462,-2778.366635,0.00010959,2]
[408276606,1773342650474,-2778.366635,0.00010959,2]
[408276608,1773342650486,-2778.366635,0.00010959,2]
[408276610,1773342650498,-2778.366635,0.00010959,2]
[408276612,1773342650509,-2778.366635,0.00010959,2]
[408276614,1773342650521,-2778.366635,0.00010959,2]
[408276616,1773342650533,-2778.366635,0.00010959,2]
[408276618,1773342650545,-2778.366635,0.00010959,2]
[408276621,1773342650558,-2778.366635,0.00010959,2]
[408276623,1773342650569,-2778.366635,0.00010959,2]
[408276625,1773342650580,-2778.366635,0.00010959,2]
[408276626,1773342650591,-2778.366635,0.00010959,2]
[408276628,1773342650602,-2778.366635,0.00010959,2]
[408276630,1773342650615,-2778.366635,0.00010959,2]
[408276632,1773342650627,-2778.366635,0.00010959,2]
[408276634,1773342650638,-2778.366633,0.00010959,2]
[408276636,1773342650649,-151.0,0.00010959,2]
[408276638,1773342650660,-151.0,0.00010959,2]
[408276640,1773342650671,-160.666147,0.00010959,2]
[408276642,1773342650683,-151.0,0.00010959,2]
[408276644,1773342650694,-151.0,0.00010959,2]
[408276646,1773342650705,-151.0,0.00010959,2]
[408276648,1773342650717,-151.0,0.00010959,2]
[408276650,1773342650727,-151.0,0.00010959,2]
[408276652,1773342650738,-151.0,0.00010959,2]
[408276655,1773342650749,-151.0,0.00010959,2]
[408276656,1773342650759,-151.0,0.00010959,2]
[408276658,1773342650770,-151.0,0.00010959,2]
[408276660,1773342650780,-151.0,0.00010959,2]
[408276661,1773342650790,-151.0,0.00010959,2]
[408276662,1773342650800,-151.0,0.00010959,2]
[408276663,1773342650811,-151.0,0.00010959,2]
[408276664,1773342650822,-151.0,0.00010959,2]
[408276665,1773342650832,-151.0,0.00010959,2]
[408276666,1773342650842,-151.0,0.00010959,2]
[408276667,1773342650852,-151.0,0.00010959,2]
[408276668,1773342650863,-170.961077,0.00010959,2]
[408276669,1773342650873,-239.083435,0.00010959,2]
[408276670,1773342650887,-239.083435,0.00010959,2]
[408276671,1773342650897,-239.083435,0.00010959,2]
[408276672,1773342650907,-239.083435,0.00010959,2]
[408276673,1773342650917,-239.083435,0.00010959,2]
[408276675,1773342650928,-239.083435,0.00010959,2]
[408276677,1773342650938,-239.083435,0.00010959,2]
[408276679,1773342650948,-239.083435,0.00010959,2]
[408276681,1773342650958,-239.083435,0.00010959,2]
[408276683,1773342650968,-280.849358,0.00010959,2]
[408276685,1773342650977,-239.083435,0.00010959,2]
[408276687,1773342650988,-280.849358,0.00010959,2]
[408276689,1773342650998,-239.083435,0.00010959,2]
[408276691,1773342651010,-280.849358,0.00010959,2]
[408276693,1773342651020,-239.083435,0.00010959,2]
[408276695,1773342651030,-280.849358,0.00010959,2]
[408276697,1773342651040,-239.083435,0.00010959,2]
[408276699,1773342651050,-280.849358,0.00010959,2]
[408276701,1773342651060,-239.083435,0.00010959,2]
[408276703,1773342651069,-280.849358,0.00010959,2]
[408276705,1773342651078,-239.083435,0.00010959,2]
[408276707,1773342651088,-280.849358,0.00010959,2]
[408276709,1773342651098,-239.083435,0.00010959,2]
[408276711,1773342651110,-280.849358,0.00010959,2]
[408276713,1773342651121,-239.083435,0.00010959,2]
[408276715,1773342651131,-280.849358,0.00010959,2]
[408276717,1773342651141,-239.083435,0.00010959,2]
[408276719,1773342651151,-280.849358,0.00010959,2]
[408276721,1773342651161,-280.849358,0.00010959,2]
[408276723,1773342651171,-239.083435,0.00010959,2]
[408276725,1773342651181,-280.849358,0.00010959,2]
[408276727,1773342651193,-239.083434,0.00010959,2]
[408276729,1773342651203,-280.849358,0.00010959,2]
[408276731,1773342651214,-280.849358,0.00010959,2]
[408276733,1773342651223,-280.849358,0.00010959,2]
[408276735,1773342651233,-280.849358,0.00010959,2]
[408276737,1773342651245,-280.849358,0.00010959,2]
[408276739,1773342651255,-280.849358,0.00010959,2]
[408276741,1773342651266,-280.849358,0.00010959,2]
[408276743,1773342651276,-280.849361,0.00010959,2]
[408276745,1773342651286,-295.825246,0.00010959,2]
[408276747,1773342651296,-235.300732,0.00010959,2]
[408276749,1773342651306,-235.300732,0.00010959,2]
[408276751,1773342651316,-235.300732,0.00010959,2]
[408276753,1773342651327,-235.300732,0.00010959,2]
[408276755,1773342651337,-235.300732,0.00010959,2]
[408276757,1773342651346,-235.300732,0.00010959,2]
[408276759,1773342651359,-235.300732,0.00010959,2]
[408276761,1773342651372,-1010.749622,0.00010959,2]
[408276763,1773342651382,-235.300732,0.00010959,2]
[408276765,1773342651392,-1010.749622,0.00010959,2]
[408276767,1773342651403,-235.300732,0.00010959,2]
[408276769,1773342651414,-1010.749622,0.00010959,2]
[408276771,1773342651425,-235.300732,0.00010959,2]
[408276773,1773342651436,-1010.749622,0.00010959,2]
[408276775,1773342651447,-235.300732,0.00010959,2]
[408276777,1773342651458,-1010.749622,0.00010959,2]
[408276779,1773342651470,-235.300732,0.00010959,2]
[408276782,1773342651482,-1010.749622,0.00010959,2]
[408276784,1773342651494,-235.300732,0.00010959,2]
[408276786,1773342651507,-1010.749622,0.00010959,2]
[408276788,1773342651519,-235.300732,0.00010959,2]
[408276790,1773342651531,-1010.749622,0.00010959,2]
[408276792,1773342651543,-235.300732,0.00010959,2]
[408276794,1773342651553,-1010.749622,0.00010959,2]
[408276796,1773342651563,-235.300732,0.00010959,2]
[408276798,1773342651573,-1010.749622,0.00010959,2]
[408276800,1773342651583,-235.300732,0.00010959,2]
[408276802,1773342651593,-235.300732,0.00010959,2]
[408276804,1773342651603,-1010.749622,0.00010959,2]
[408276806,1773342651614,-235.300732,0.00010959,2]
[408276808,1773342651623,-1010.749622,0.00010959,2]
[408276810,1773342651634,-235.300735,0.00010959,2]
[408276812,1773342651644,-1010.749622,0.00010959,2]
[408276814,1773342651654,-1010.749622,0.00010959,2]
[408276816,1773342651664,-1010.749622,0.00010959,2]
[408276818,1773342651673,-1010.749622,0.00010959,2]
[408276820,1773342651683,-1010.749622,0.00010959,2]
[408276822,1773342651693,-1010.749622,0.00010959,2]
[408276824,1773342651703,-1010.749622,0.00010959,2]
[408276826,1773342651712,-1010.749622,0.00010959,2]
[408276828,1773342651722,-151.0,0.00010959,2]
[408276830,1773342651732,-151.0,0.00010959,2]
[408276832,1773342651742,-151.0,0.00010959,2]
[408276834,1773342651752,-151.0,0.00010959,2]
[408276836,1773342651762,-151.0,0.00010959,2]
[408276838,1773342651771,-151.0,0.00010959,2]
[408276840,1773342651782,-151.0,0.00010959,2]
[408276842,1773342651793,-151.0,0.00010959,2]
[408276844,1773342651803,-151.0,0.00010959,2]
[408276846,1773342651814,-151.0,0.00010959,2]
[408276848,1773342651824,-151.0,0.00010959,2]
[408276850,1773342651834,-151.0,0.00010959,2]
[408276852,1773342651844,-151.0,0.00010959,2]
[408276854,1773342651854,-160.649708,0.00010959,2]
[408276856,1773342651865,-151.0,0.00010959,2]
[408276858,1773342651875,-208.320938,0.00010959,2]
[408276860,1773342651888,-844.6,0.00010959,2]
[408276862,1773342651898,-844.6,0.00010959,2]
[408276864,1773342651908,-844.6,0.00010959,2]
[408276866,1773342651918,-844.6,0.00010959,2]
[408276868,1773342651930,-844.6,0.00010959,2]
[408276870,1773342651940,-844.6,0.00010959,2]
[408276872,1773342651951,-844.6,0.00010959,2]
[408276874,1773342651963,-844.6,0.00010959,2]
[408276876,1773342651974,-844.6,0.00010959,2]
[408276878,1773342651984,-844.6,0.00010959,2]
[408276880,1773342651995,-844.6,0.00010959,2]
[408276882,1773342652005,-844.6,0.00010959,2]
[408276884,1773342652015,-844.6,0.00010959,2]
[408276886,1773342652025,-844.6,0.00010959,2]
[408276888,1773342652036,-844.6,0.00010959,2]
[408276890,1773342652046,-844.6,0.00010959,2]
[408276892,1773342652055,-844.6,0.00010959,2]
[408276894,1773342652066,-844.6,0.00010959,2]
[408276896,1773342652076,-844.6,0.00010959,2]
[408276898,1773342652087,-844.6,0.00010959,2]
[408276900,1773342652098,-447.87325,0.00010959,2]
[408276902,1773342652110,-447.87325,0.00010959,2]
[408276905,1773342652121,-447.87325,0.00010959,2]
[408276907,1773342652132,-447.87325,0.00010959,2]
[408276909,1773342652145,-447.87325,0.00010959,2]
[408276911,1773342652156,-447.87325,0.00010959,2]
[408276913,1773342652167,-447.87325,0.00010959,2]
[408276915,1773342652177,-447.87325,0.00010959,2]
[408276917,1773342652187,-5591.21027543,0.00010967,2]
[408276919,1773342652197,-281.0,0.00011,2]
[408276921,1773342652207,-1401.0,0.00011,2]
[408276923,1773342652218,-1039.999999,0.00011,2]
[408276925,1773342652229,-1093.77393843,0.00011106,2]
[408276927,1773342652239,-160.0,0.00011133,3]
[408276929,1773342652249,-516.42588943,0.00011141,2]
[408276931,1773342652259,-223.95461025,0.00011152,2]
[408276933,1773342652271,-1000.0,0.00011177,2]
[408276935,1773342652281,-171.36,0.0001122,2]
[408276937,1773342652291,-174.61919141,0.00011227,2]
[408276939,1773342652304,-533.88981491,0.00011229,2]
[408276941,1773342652314,-2579.17784983,0.00011229,2]
[408276959,1773342652501,-644.79446246,0.00011229,2]
[408276961,1773342652512,-8333.09874984,0.00011319,2]
[408276963,1773342652523,-729.64118218,0.00011336,7]
[408276965,1773342652534,-625.58639781,0.00011366,7]
[408276968,1773342652547,-1000.0,0.00011396,2]
[408276970,1773342652559,-2194.0,0.00011468,2]
[408276972,1773342652570,-549.552,0.00011468,2]
[408276974,1773342652581,-193.937,0.00011468,2]
[408276976,1773342652591,-1000.0,0.00011565,2]
[408276978,1773342652601,-492.0,0.00011565,2]
[408276980,1773342652612,-6276.0,0.00011599,5]
[408276982,1773342652623,-150.0483877,0.00011605,7]
[408276984,1773342652633,-346.69196923,0.00011605,7]
[408276985,1773342652644,-1000.0,0.00011615,2]
[408276988,1773342652657,-2350.42054374,0.0001175,2]
[408276990,1773342652668,-553.64373807,0.00011777,2]
[408276991,1773342652679,-2674.60743027,0.00011777,2]
[408276993,1773342652691,-668.65185757,0.00011777,2]
[408276995,1773342652703,-142327.23818523,0.00011781,2]
[408277037,1773342653165,-1509.5865512,0.00011781,2]
[408277039,1773342653177,-253.0,0.00011781,2]
[408277041,1773342653190,-2112.3094577,0.00011781,2]
[408277044,1773342653205,-1725.08489159,0.00011781,2]
[408277059,1773342653349,-1635.28959165,6.835e-05,2]
[408277061,1773342653362,-581.42903535,6.835e-05,2]
[408277101,1773342653790,-1359.0,6.835e-05,2]
[408277402,1773343756111,-381.4603842,5.762e-05,2]
[408277438,1773343832367,-463.38282993,5.591e-05,2]
[408277444,1773343832419,-939.45972945,5.591e-05,2]
[408277511,1773343838709,-687.33916467,5.591e-05,2]
[408277544,1773343840921,-812.04690215,5.591e-05,2]
[408277766,1773343843411,-1398.14357681,5.591e-05,2]
[408277767,1773343843587,-699.62779699,5.591e-05,2]
[408277768,1773343843596,-3261.34037414,5.647e-05,2]
[408277770,1773343843606,-502.0,5.647e-05,2]
[408277772,1773343843616,-1200.0,5.703e-05,2]
[408277774,1773343843625,-4337.03182887,5.704e-05,2]
[408277776,1773343843637,-662.96817113,5.704e-05,2]
[408277778,1773343843653,-164.02360107,5.791e-05,2]
[408277781,1773343843669,-300.0,5.877e-05,2]
[408277783,1773343843680,-300.0,5.877e-05,2]
[408277785,1773343843692,-300.0,5.877e-05,2]
[408277787,1773343843702,-300.0,5.877e-05,2]
[408277789,1773343843712,-300.0,5.877e-05,2]
[408277792,1773343843723,-1680.0,6.273e-05,2]
[408277794,1773343843733,-420.0,6.465e-05,2]
[408277795,1773343843744,-420.0,6.465e-05,2]
[408277797,1773343843753,-300.0,6.465e-05,2]
[408277799,1773343843763,-500.0,6.705e-05,2]
[408277801,1773343843773,-300.0,6.764e-05,2]
[408277803,1773343843782,-300.0,6.764e-05,2]
[408277806,1773343843793,-300.0,6.764e-05,2]
[408277808,1773343843803,-300.0,6.764e-05,2]
[408277810,1773343843813,-300.0,6.764e-05,2]
[408277812,1773343843823,-300.0,6.764e-05,2]
[408277814,1773343843832,-300.0,6.764e-05,2]
[408277816,1773343843842,-300.0,6.764e-05,2]
[408277818,1773343843851,-300.0,6.764e-05,2]
[408277821,1773343843860,-300.0,6.764e-05,2]
[408277824,1773343843870,-300.0,6.764e-05,2]
[408277826,1773343843880,-300.0,6.764e-05,2]
[408277828,1773343843890,-300.0,6.764e-05,2]
[408277830,1773343843899,-300.0,6.764e-05,2]
[408277832,1773343843911,-300.0,6.764e-05,2]
[408277834,1773343843920,-600.0,6.898e-05,2]
[408277836,1773343843930,-2351.0,6.901e-05,2]
[408277838,1773343843940,-335.0,7.111e-05,2]
[408277840,1773343843950,-587.0,7.111e-05,2]
[408277842,1773343843960,-720.0,7.588e-05,2]
[408277844,1773343843969,-500.0,7.615e-05,2]
[408277846,1773343843979,-500.0,7.617e-05,2]
[408277890,1773343844390,-193.54784926,7.791e-05,2]
[408277893,1773343844406,-500.0,8.108e-05,2]
[408277895,1773343844415,-500.0,8.108e-05,2]
[408277897,1773343844424,-541.15706046,8.108e-05,2]
[408277899,1773343844433,-529.10406905,8.108e-05,2]
[408277901,1773343844442,-260.14021253,8.108e-05,2]
[408277903,1773343844451,-500.0,8.108e-05,2]
[408277905,1773343844460,-500.0,8.108e-05,2]
[408277907,1773343844469,-500.0,8.108e-05,2]
[408277909,1773343844478,-500.0,8.108e-05,2]
[408277911,1773343844488,-500.0,8.12e-05,2]
[408277913,1773343844496,-500.0,8.163e-05,2]
[408277915,1773343844506,-500.0,8.165e-05,2]
[408277916,1773343844515,-864.0,8.347e-05,2]
[408277919,1773343844527,-500.0,8.453e-05,2]
[408277921,1773343844537,-323.72141682,8.453e-05,2]
[408277923,1773343844546,-500.0,8.453e-05,2]
[408277925,1773343844554,-500.0,8.453e-05,2]
[408277927,1773343844564,-500.0,8.453e-05,2]
[408277929,1773343844573,-172.37477054,8.453e-05,2]
[408277931,1773343844582,-500.0,8.453e-05,2]
[408277933,1773343844592,-215.91646739,8.453e-05,2]
[408277935,1773343844602,-500.0,8.453e-05,2]
[408277937,1773343844611,-500.0,8.453e-05,2]
[408277939,1773343844620,-500.0,8.453e-05,2]
[408277941,1773343844629,-500.0,8.453e-05,2]
[408277943,1773343844643,-500.0,8.453e-05,2]
[408277945,1773343844653,-500.0,8.453e-05,2]
[408277947,1773343844664,-500.0,8.453e-05,2]
[408277949,1773343844672,-500.0,8.453e-05,2]
[408277951,1773343844682,-500.0,8.453e-05,2]
[408277953,1773343844690,-318.32111535,8.453e-05,2]
[408277955,1773343844700,-500.0,8.453e-05,2]
[408277957,1773343844711,-500.0,8.453e-05,2]
[408277959,1773343844720,-500.0,8.453e-05,2]
[408277961,1773343844730,-500.0,8.453e-05,2]
[408277963,1773343844739,-483.13519746,8.453e-05,2]
[408277965,1773343844748,-500.0,8.453e-05,2]
[408277967,1773343844757,-500.0,8.453e-05,2]
[408277969,1773343844767,-500.0,8.453e-05,2]
[408277971,1773343844776,-500.0,8.453e-05,2]
[408277973,1773343844785,-500.0,8.453e-05,2]
[408277975,1773343844795,-500.0,8.453e-05,2]
[408277977,1773343844808,-500.0,8.453e-05,2]
[408277979,1773343844819,-500.0,8.453e-05,2]
[408277981,1773343844829,-500.0,8.453e-05,2]
[408277983,1773343844838,-500.0,8.453e-05,2]
[408277985,1773343844847,-500.0,8.453e-05,2]
[408277987,1773343844856,-162.380719,8.455e-05,2]
[408277989,1773343844865,-500.0,8.455e-05,2]
[408277991,1773343844874,-192.44882344,8.455e-05,2]
[408277993,1773343844885,-500.0,8.455e-05,2]
[408277995,1773343844895,-500.0,8.455e-05,2]
[408277997,1773343844904,-500.0,8.455e-05,2]
[408277999,1773343844917,-500.0,8.455e-05,2]
[408278001,1773343844926,-500.0,8.455e-05,2]
[408278003,1773343844935,-500.0,8.455e-05,2]
[408278005,1773343844944,-500.0,8.455e-05,2]
[408278006,1773343844953,-500.0,8.455e-05,2]
[408278008,1773343844962,-500.0,8.455e-05,2]
[408278010,1773343844970,-172.10837114,8.455e-05,2]
[408278012,1773343844979,-2150.738,8.455e-05,2]
[408278013,1773343844988,-537.6845,8.455e-05,2]
[408278016,1773343844998,-1000.0,8.656e-05,2]
[408278017,1773343845008,-500.0,8.656e-05,2]
[408278020,1773343845018,-500.0,8.668e-05,2]
[408278022,1773343845027,-2230.315306,9.003e-05,2]
[408278024,1773343845036,-614.31578316,9.003e-05,2]
[408278026,1773343845046,-2191.0,9.142e-05,2]
[408278028,1773343845055,-1000.0,9.182e-05,2]
[408278029,1773343845064,-194.017,9.193e-05,2]
[408278031,1773343845073,-2312.83697232,9.551e-05,2]
[408278033,1773343845083,-223.07209746,9.791e-05,2]
[408278035,1773343845092,-168.3888056,9.824e-05,2]
[408278037,1773343845101,-500.0,9.974e-05,2]
[408278039,1773343845112,-269.5525993,0.00010098,2]
[408278041,1773343845120,-2398.4119403,0.00010099,2]
[408278043,1773343845130,-1000.0,0.000101,2]
[408278045,1773343845139,-244.0,0.000101,2]
[408278047,1773343845149,-675.15137751,0.000101,2]
[408278049,1773343845159,-2487.15318209,0.00010647,2]
[408278051,1773343845168,-1725.08489159,0.0001075,2]
[408278053,1773343845178,-500.0,0.0001078,2]
[408278055,1773343845187,-500.0,0.0001078,2]
[408278057,1773343845196,-500.0,0.0001078,2]
[408278060,1773343845206,-500.0,0.0001078,2]
[408278062,1773343845217,-500.0,0.0001078,2]
[408278064,1773343845228,-607.45559881,0.00010873,2]
[408278066,1773343845238,-287.28643882,0.00010873,2]
[408278067,1773343845247,-500.0,0.00010873,2]
[408278069,1773343845258,-500.05039856,0.00010873,2]
[408278071,1773343845267,-500.0,0.00010873,2]
[408278073,1773343845277,-688.00932611,0.00010959,2]
[408278075,1773343845286,-2216.42186373,0.00010959,2]
[408278078,1773343845297,-245.70574916,0.00010959,2]
[408278080,1773343845306,-1000.0,0.0001111,2]
[408278082,1773343845316,-492.0,0.0001111,2]
[408278084,1773343845325,-175.26557345,0.00011193,2]
[408278086,1773343845334,-2579.17784983,0.00011195,2]
[408278087,1773343845343,-280.80657047,0.00011293,2]
[408278089,1773343845352,-643.19897988,0.00011421,2]
[408278091,1773343845362,-1322.01388446,0.00011545,2]
[408278093,1773343845372,-1257.8656636,0.00011578,2]
[408278095,1773343845382,-151.0,0.000116,2]
[408278097,1773343845391,-151.0,0.000116,2]